fUST/lending_fUST_20250302
["ID","MTS","AMOUNT","RATE_DAILY","PERIOD"]
[355069532,1740886285968,-500.0,0.00025008,2]
[355069533,1740886285978,-509.81132047,0.00025008,2]
[355069534,1740886285988,-500.0,0.00025008,2]
[355069535,1740886286000,-500.0,0.00025008,2]
[355069536,1740886286009,-500.0,0.00025008,2]
[355069537,1740886286019,-500.0,0.00025008,2]
[355069538,1740886286029,-614.99,0.00025008,2]
[355069539,1740886286038,-1289.22,0.00025008,2]
[355069540,1740886286048,-598.14,0.00025008,2]
[355069541,1740886286057,-2226.86,0.00025008,2]
[355069542,1740886286067,-507.42046679,0.00025008,2]
[355069543,1740886286076,-2581.24,0.00025008,2]
[355069544,1740886286087,-500.0,0.00025008,2]
[355069545,1740886286097,-1739.44,0.00025008,2]
[355069546,1740886286107,-500.0,0.00025008,2]
[355069547,1740886286116,-1169.44,0.00025008,2]
[355069548,1740886286126,-500.0,0.00025008,2]
[355069549,1740886286136,-756.25,0.00025008,2]
[355069550,1740886286146,-500.0,0.00025008,2]
[355069551,1740886286156,-1204.9,0.00025008,2]
[355069552,1740886286166,-500.0,0.00025008,2]
[355069553,1740886286176,-555.791576,0.00025008,7]
[355069554,1740886286186,-555.791576,0.00025008,7]
[355069555,1740886286196,-1004.4,0.00025008,2]
[355069556,1740886286206,-4788.78,0.00025008,2]
[355069557,1740886286216,-531.68,0.00025008,2]
[355069558,1740886286226,-500.0,0.00025008,2]
[355069559,1740886286238,-3299.15,0.00025008,2]
[355069560,1740886286248,-500.0,0.00025008,2]
[355069561,1740886286257,-484.565914,0.00025008,7]
[355069562,1740886286267,-3768.09,0.00025008,2]
[355069563,1740886286278,-484.565914,0.00025008,7]
[355069564,1740886286288,-656.004015,0.00025008,7]
[355069565,1740886286297,-500.0,0.00025008,2]
[355069566,1740886286307,-656.004015,0.00025008,7]
[355069567,1740886286318,-1428.31,0.00025008,2]
[355069568,1740886286329,-500.0,0.00025008,2]
[355069569,1740886286339,-851.2,0.00025008,2]
[355069570,1740886286349,-270.896872,0.00025008,7]
[355069571,1740886286358,-270.896872,0.00025008,7]
[355069572,1740886286368,-2684.0,0.00025008,2]
[355069573,1740886286378,-4323.02,0.00025008,2]
[355069574,1740886286388,-500.0,0.00025008,2]
[355069575,1740886286398,-782.1,0.00025008,2]
[355069576,1740886286407,-590.63,0.00025008,2]
[355069577,1740886286417,-1784.14,0.00025008,2]
[355069578,1740886286428,-1315.96,0.00025008,2]
[355069579,1740886286438,-659.17,0.00025008,2]
[355069580,1740886286448,-500.0,0.00025008,2]
[355069581,1740886286459,-500.0,0.00025008,2]
[355069582,1740886286468,-1228.88,0.00025008,2]
[355069583,1740886286478,-666.93,0.00025008,2]
[355069584,1740886286488,-1449.12,0.00025008,2]
[355069585,1740886286499,-500.0,0.00025008,2]
[355069586,1740886286508,-505.18,0.00025008,2]
[355069587,1740886286724,-500.0,0.00025008,2]
[355069588,1740886286734,-1090.34,0.00025008,2]
[355069589,1740886286744,-500.0,0.00025008,2]
[355069590,1740886286754,-2634.31,0.00025008,2]
[355069591,1740886286764,-500.0,0.00025008,2]
[355069592,1740886286774,-501.72490174,0.00025008,2]
[355069593,1740886286783,-569.32,0.00025008,2]
[355069594,1740886286793,-6333.26,0.00025008,2]
[355069595,1740886286804,-500.0,0.00025008,2]
[355069596,1740886286814,-500.0,0.00025008,2]
[355069597,1740886286823,-500.0,0.00025008,2]
[355069598,1740886286833,-500.0,0.00025008,2]
[355069599,1740886286843,-500.0,0.00025008,2]
[355069600,1740886286854,-500.0,0.00025008,2]
[355069601,1740886286864,-500.0,0.00025008,2]
[355069602,1740886286874,-500.0,0.00025008,2]
[355069603,1740886286885,-500.0,0.00025008,2]
[355069604,1740886286895,-1915.38,0.00025008,2]
[355069605,1740886286904,-151.0,0.00025009,7]
[355069606,1740886286914,-888.08,0.00025009,2]
[355069607,1740886286924,-500.0,0.00025009,2]
[355069608,1740886286934,-500.0,0.00025009,2]
[355069609,1740886286944,-151.0,0.00025009,7]
[355069610,1740886286954,-500.51,0.00025009,2]
[355069611,1740886286964,-500.0,0.00025009,2]
[355069612,1740886286974,-591.09,0.00025009,2]
[355069613,1740886286984,-896.52,0.00025009,2]
[355069614,1740886286995,-553.7,0.00025009,2]
[355069615,1740886287005,-524.51,0.00025009,2]
[355069616,1740886287015,-151.0,0.00025009,7]
[355069617,1740886287024,-151.0,0.00025009,7]
[355069618,1740886287034,-1474.58,0.00025009,2]
[355069619,1740886287044,-500.0,0.00025009,2]
[355069620,1740886287053,-500.0,0.00025009,2]
[355069621,1740886287063,-500.0,0.00025009,2]
[355069622,1740886287074,-500.0,0.00025009,2]
[355069623,1740886287083,-687.64,0.00025009,2]
[355069624,1740886287094,-521.17,0.00025009,2]
[355069625,1740886287103,-928.01,0.00025009,2]
[355069626,1740886287114,-511.31344293,0.00025009,2]
[355069627,1740886287124,-513.5662548,0.00025009,2]
[355069628,1740886287134,-500.0,0.00025009,2]
[355069629,1740886287144,-500.0,0.00025009,2]
[355069630,1740886287153,-500.0,0.00025009,2]
[355069631,1740886287164,-500.0,0.00025009,2]
[355069632,1740886287173,-500.0,0.00025009,2]
[355069633,1740886287183,-500.0,0.00025009,2]
[355069634,1740886287194,-500.0,0.00025009,2]
[355069635,1740886287204,-500.0,0.00025009,2]
[355069636,1740886287214,-507.77971639,0.00025009,2]
[355069637,1740886287224,-151.0,0.00025009,7]
[355069638,1740886287236,-583.22,0.00025009,2]
[355069639,1740886287246,-500.0,0.00025009,2]
[355069640,1740886287257,-512.76057005,0.00025009,2]
[355069641,1740886287266,-507.42332165,0.00025009,2]
[355069642,1740886287277,-506.80978573,0.00025009,2]
[355069643,1740886287287,-507.19798736,0.00025009,2]
[355069644,1740886287296,-535.8375657,0.00025009,2]
[355069645,1740886287306,-155.68639401,0.00025009,2]
[355069646,1740886287317,-500.0,0.00025009,2]
[355069647,1740886287327,-528.00899007,0.00025009,2]
[355069648,1740886287336,-500.0,0.00025009,2]
[355069649,1740886287346,-500.0,0.00025009,2]
[355069650,1740886287355,-500.0,0.00025009,2]
[355069651,1740886287365,-500.0,0.00025009,2]
[355069652,1740886287375,-500.0,0.00025009,2]
[355069653,1740886287385,-821.72,0.00025009,2]
[355069654,1740886287395,-500.0,0.00025009,2]
[355069655,1740886287404,-703.97,0.00025009,2]
[355069656,1740886287414,-500.0,0.00025009,2]
[355069657,1740886287425,-646.1,0.00025009,2]
[355069658,1740886287434,-1413.57,0.00025009,2]
[355069659,1740886287444,-153.578998,0.00025009,7]
[355069660,1740886287454,-153.578998,0.00025009,7]
[355069661,1740886287464,-151.0,0.00025009,7]
[355069662,1740886287473,-548.28,0.00025009,2]
[355069663,1740886287483,-151.0,0.00025009,7]
[355069664,1740886287492,-1102.8,0.00025009,2]
[355069665,1740886287502,-517.31530468,0.00025009,2]
[355069666,1740886287512,-694.6,0.00025009,2]
[355069667,1740886287522,-500.0,0.00025009,2]
[355069668,1740886287532,-540.61,0.00025009,2]
[355069669,1740886287542,-500.0,0.00025009,2]
[355069670,1740886287551,-500.0,0.00025009,2]
[355069671,1740886287562,-500.0,0.00025009,2]
[355069672,1740886287572,-623.08,0.00025009,2]
[355069673,1740886287582,-1137.28,0.00025009,2]
[355069674,1740886287592,-162.166992,0.00025009,7]
[355069675,1740886287603,-151.0,0.00025009,7]
[355069676,1740886287615,-1017.35,0.00025009,2]
[355069677,1740886287625,-162.166992,0.00025009,7]
[355069678,1740886287635,-509.62223173,0.00025009,2]
[355069679,1740886287645,-500.0,0.00025009,2]
[355069680,1740886287655,-1330.22,0.00025009,2]
[355069681,1740886287664,-500.0,0.00025009,2]
[355069682,1740886287674,-500.0,0.00025009,2]
[355069683,1740886287683,-510.56424638,0.00025009,2]
[355069684,1740886287693,-500.0,0.00025009,2]
[355069685,1740886287703,-500.0,0.00025009,2]
[355069686,1740886287713,-500.0,0.00025009,2]
[355069687,1740886287723,-217.445586,0.00025009,7]
[355069688,1740886287732,-1585.715627,0.00025009,7]
[355069689,1740886287742,-500.0,0.00025009,2]
[355069690,1740886287752,-217.445586,0.00025009,7]
[355069691,1740886287761,-1066.57,0.00025009,2]
[355069692,1740886287771,-1585.715627,0.00025009,7]
[355069693,1740886287780,-500.0,0.00025009,2]
[355069694,1740886287791,-228.05025,0.00025009,7]
[355069695,1740886287803,-228.05025,0.00025009,7]
[355069696,1740886287814,-151.0,0.00025009,7]
[355069697,1740886287824,-151.0,0.00025009,7]
[355069698,1740886287834,-2368.56,0.00025009,2]
[355069699,1740886287845,-1359.76,0.00025009,2]
[355069700,1740886287856,-151.0,0.00025009,7]
[355069701,1740886287866,-944.0085,0.00025009,7]
[355069702,1740886287876,-944.0085,0.00025009,7]
[355069703,1740886287886,-555.791576,0.00025009,7]
[355069704,1740886287896,-555.791576,0.00025009,7]
[355069705,1740886287906,-2080.684122,0.00025009,7]
[355069706,1740886287916,-2080.684122,0.00025009,7]
[355069707,1740886287926,-484.565914,0.00025009,7]
[355069708,1740886287936,-484.565914,0.00025009,7]
[355069709,1740886287947,-656.004015,0.00025009,7]
[355069710,1740886287956,-656.004015,0.00025009,7]
[355069711,1740886287966,-270.896872,0.00025009,7]
[355069712,1740886287976,-270.896872,0.00025009,7]
[355069713,1740886287986,-500.0,0.00025027,120]
[355069714,1740886287996,-500.0,0.00025027,120]
[355069715,1740886288006,-500.0,0.00025027,120]
[355069716,1740886288016,-500.0,0.00025027,120]
[355069717,1740886288026,-500.0,0.00025027,120]
[355069718,1740886288036,-500.0,0.00025027,120]
[355069719,1740886288046,-500.0,0.00025027,120]
[355069720,1740886288056,-500.0,0.00025027,120]
[355069721,1740886288066,-500.0,0.00025027,120]
[355069722,1740886288075,-500.0,0.00025027,120]
[355069723,1740886288085,-500.0,0.00025027,120]
[355069724,1740886288096,-500.0,0.00025027,120]
[355069725,1740886288106,-500.0,0.00025027,120]
[355069726,1740886288116,-500.0,0.00025027,120]
[355069727,1740886288126,-500.0,0.00025027,120]
[355069728,1740886288135,-500.0,0.00025027,120]
[355069729,1740886288145,-500.0,0.00025027,120]
[355069730,1740886288155,-500.0,0.00025027,120]
[355069731,1740886288165,-500.0,0.00025027,120]
[355069732,1740886288175,-500.0,0.00025027,120]
[355069733,1740886288184,-500.0,0.00025027,120]
[355069734,1740886288194,-500.0,0.00025027,120]
[355069735,1740886288204,-500.0,0.00025027,120]
[355069736,1740886288214,-500.0,0.00025027,120]
[355069737,1740886288223,-500.0,0.00025027,120]
[355069738,1740886288234,-500.0,0.00025027,120]
[355069739,1740886288246,-500.0,0.00025027,120]
[355069740,1740886288256,-500.0,0.00025027,120]
[355069741,1740886288266,-500.0,0.00025027,120]
[355069742,1740886288276,-500.0,0.00025027,120]
[355069743,1740886288287,-500.0,0.00025027,120]
[355069744,1740886288297,-500.0,0.00025027,120]
[355069745,1740886288308,-500.0,0.00025027,120]
[355069746,1740886288318,-500.0,0.00025027,120]
[355069747,1740886288327,-500.0,0.00025027,120]
[355069748,1740886288337,-500.0,0.00025027,120]
[355069749,1740886288347,-500.0,0.00025027,120]
[355069750,1740886288356,-500.0,0.00025027,120]
[355069751,1740886288366,-500.0,0.00025027,120]
[355069752,1740886288375,-500.0,0.00025027,120]
[355069753,1740886288386,-500.0,0.00025027,120]
[355069754,1740886288395,-500.0,0.00025027,120]
[355069755,1740886288404,-500.0,0.00025027,120]
[355069756,1740886288414,-500.0,0.00025027,120]
[355069757,1740886288423,-500.0,0.00025027,120]
[355069758,1740886288433,-500.0,0.00025027,120]
[355069759,1740886288443,-500.0,0.00025027,120]
[355069760,1740886288452,-500.0,0.00025027,120]
[355069761,1740886288462,-500.0,0.00025027,120]
[355069762,1740886288472,-500.0,0.00025027,120]
[355069763,1740886288481,-500.0,0.00025027,120]
[355069764,1740886288491,-500.0,0.00025027,120]
[355069765,1740886288501,-500.0,0.00025027,120]
[355069766,1740886288511,-500.0,0.00025027,120]
[355069767,1740886288521,-500.0,0.00025027,120]
[355069768,1740886288531,-500.0,0.00025027,120]
[355069769,1740886288540,-500.0,0.00025027,120]
[355069770,1740886288550,-500.0,0.00025027,120]
[355069771,1740886288560,-500.0,0.00025027,120]
[355069772,1740886288570,-500.0,0.00025027,120]
[355069773,1740886288579,-500.0,0.00025027,120]
[355069774,1740886288590,-500.0,0.00025027,120]
[355069775,1740886288600,-500.0,0.00025027,120]
[355069776,1740886288610,-500.0,0.00025027,120]
[355069777,1740886288620,-500.0,0.00025027,120]
[355069778,1740886288629,-500.0,0.00025027,120]
[355069779,1740886288639,-500.0,0.00025027,120]
[355069780,1740886288649,-500.0,0.00025027,120]
[355069781,1740886288659,-500.0,0.00025027,120]
[355069782,1740886288668,-500.0,0.00025027,120]
[355069783,1740886288678,-500.0,0.00025027,120]
[355069784,1740886288688,-500.0,0.00025027,120]
[355069785,1740886288697,-500.0,0.00025027,120]
[355069786,1740886288707,-500.0,0.00025027,120]
[355069787,1740886288717,-500.0,0.00025027,120]
[355069788,1740886288726,-173.83,0.00025027,120]
[355069789,1740886288735,-500.0,0.00025027,120]
[355069790,1740886288746,-172.45575893,0.00025068,2]
[355069791,1740886288756,-194.81791747,0.00025068,2]
[355069792,1740886288766,-188.89804429,0.00025068,2]
[355069793,1740886288775,-160.66832447,0.00025068,2]
[355069794,1740886288785,-163.92161205,0.00025068,2]
[355069795,1740886288795,-500.0,0.000251,2]
[355069796,1740886288804,-162.166992,0.00025109,7]
[355069797,1740886288814,-162.166992,0.00025109,7]
[355069798,1740886288824,-812.39111583,0.00025112,2]
[355069799,1740886288834,-800.0,0.00025127,2]
[355069800,1740886288845,-453.38877966,0.00025148,2]
[355069801,1740886288855,-156.45923289,0.00025151,2]
[355069802,1740886288864,-465.01683303,0.00025152,2]
[355069803,1740886288875,-500.0,0.00025159,2]
[355069804,1740886289055,-13513.14,0.0002516,2]
[355069805,1740886289088,-7624.93,0.0002516,2]
[355069806,1740886289098,-1615.71,0.0002516,5]
[355069807,1740886289108,-2961.69,0.0002516,2]
[355069808,1740886289118,-2330.23,0.0002516,2]
[355069809,1740886289128,-2306.22,0.0002516,2]
[355069810,1740886289138,-500.0,0.0002516,2]
[355069811,1740886289148,-527.00084736,0.0002516,2]
[355069812,1740886289157,-500.0,0.00025172,2]
[355069813,1740886289168,-500.0,0.00025172,2]
[355069814,1740886289177,-632.19,0.00025172,2]
[355069815,1740886289186,-2053.23,0.00025172,2]
[355069816,1740886289196,-1289.53,0.00025172,2]
[355069817,1740886289206,-500.0,0.00025172,2]
[355069818,1740886289215,-151.0,0.00025172,7]
[355069819,1740886289225,-542.79,0.00025172,2]
[355069820,1740886289238,-500.0,0.00025172,2]
[355069821,1740886289249,-729.52,0.00025172,2]
[355069822,1740886289258,-944.0085,0.00025172,7]
[355069823,1740886289268,-2911.18,0.00025172,2]
[355069824,1740886289279,-944.0085,0.00025172,7]
[355069825,1740886289288,-543.53,0.00025172,2]
[355069826,1740886289298,-1263.1,0.00025172,2]
[355069827,1740886289308,-500.0,0.00025172,2]
[355069828,1740886289320,-2931.73,0.00025172,2]
[355069829,1740886289333,-500.0,0.00025172,2]
[355069830,1740886289343,-1979.56,0.00025172,2]
[355069831,1740886289353,-2080.684122,0.00025172,7]
[355069832,1740886289362,-2080.684122,0.00025172,7]
[355069833,1740886289372,-169.688825,0.00025172,7]
[355069834,1740886289382,-500.0,0.00025172,2]
[355069835,1740886289392,-491.099853,0.00025172,7]
[355069836,1740886289402,-491.099862,0.00025172,7]
[355069837,1740886289412,-523.18,0.00025172,2]
[355069838,1740886289421,-500.0,0.00025172,2]
[355069839,1740886289431,-500.0,0.00025172,2]
[355069840,1740886289440,-2314.06,0.00025172,2]
[355069841,1740886289450,-2260.58,0.00025172,2]
[355069842,1740886289460,-1000.324893,0.00025172,7]
[355069843,1740886289470,-1000.324901,0.00025172,7]
[355069844,1740886289480,-828.38,0.00025172,2]
[355069845,1740886289490,-500.0,0.00025172,2]
[355069846,1740886289499,-2081.84,0.00025172,2]
[355069847,1740886289509,-1076.19,0.00025172,2]
[355069848,1740886289519,-555.068474,0.00025172,7]
[355069849,1740886289529,-555.068483,0.00025172,7]
[355069850,1740886289540,-500.0,0.00025172,2]
[355069851,1740886289550,-1339.9,0.00025172,2]
[355069852,1740886289559,-500.0,0.00025172,2]
[355069853,1740886289569,-500.0,0.00025172,2]
[355069854,1740886289579,-500.0,0.00025172,2]
[355069855,1740886289589,-3469.31,0.00025172,2]
[355069856,1740886289600,-1990.46,0.00025172,2]
[355069857,1740886289610,-971.07,0.00025172,2]
[355069858,1740886289621,-1249.98,0.00025172,2]
[355069859,1740886289631,-2179.06,0.00025172,2]
[355069860,1740886289642,-1012.24,0.00025172,2]
[355069861,1740886289652,-3060.91,0.00025172,2]
[355069862,1740886289661,-559.99,0.00025172,2]
[355069863,1740886289671,-615.9,0.00025172,2]
[355069864,1740886289681,-1996.5,0.00025172,2]
[355069865,1740886289691,-505.65591996,0.00025172,2]
[355069866,1740886289700,-4060.12,0.00025172,2]
[355069867,1740886289709,-10606.09,0.00025172,2]
[355069868,1740886289719,-2799.89,0.00025172,2]
[355069869,1740886289729,-1333.19,0.00025172,2]
[355069870,1740886289738,-719.18,0.00025172,2]
[355069871,1740886289748,-835.72,0.00025172,2]
[355069872,1740886289758,-1367.07,0.00025172,2]
[355069873,1740886289767,-2939.4,0.00025172,2]
[355069874,1740886289778,-1214.18,0.00025172,2]
[355069875,1740886289802,-500.0,0.00025172,2]
[355069876,1740886289814,-4481.86,0.00025172,2]
[355069877,1740886289824,-548.69,0.00025172,2]
[355069878,1740886289835,-659.46,0.00025172,2]
[355069879,1740886289847,-4158.95,0.00025172,2]
[355069880,1740886289858,-500.0,0.00025172,2]
[355069881,1740886289869,-848.25,0.00025172,2]
[355069882,1740886289881,-25489.85,0.00025172,2]
[355069883,1740886289891,-1593.02,0.00025172,2]
[355069884,1740886289902,-3140.53,0.00025172,2]
[355069885,1740886289912,-500.0,0.00025172,2]
[355069886,1740886289923,-716.21,0.00025172,2]
[355069887,1740886289933,-513.02311288,0.00025172,2]
[355069888,1740886289943,-500.0,0.00025172,2]
[355069889,1740886289955,-4639.3,0.00025172,2]
[355069890,1740886289964,-500.0,0.00025172,2]
[355069891,1740886289976,-14182.49,0.00025172,2]
[355069892,1740886289986,-1188.6,0.00025172,2]
[355069893,1740886290001,-592.63,0.00025172,2]
[355069894,1740886290012,-510.83388009,0.00025172,2]
[355069895,1740886290022,-1643.74,0.00025172,2]
[355069896,1740886290032,-12307.96,0.00025172,2]
[355069897,1740886290042,-1368.42,0.00025172,2]
[355069898,1740886290053,-669.91,0.00025172,2]
[355069899,1740886290063,-500.0,0.00025172,2]
[355069900,1740886290073,-3975.37,0.00025172,2]
[355069901,1740886290083,-501.67,0.00025172,2]
[355069902,1740886290093,-1802.14,0.00025172,2]
[355069903,1740886290103,-962.58,0.00025172,2]
[355069904,1740886290135,-789.66,0.00025172,2]
[355069905,1740886290162,-1159.12,0.00025172,2]
[355069906,1740886290185,-20055.8,0.00025172,2]
[355069907,1740886290211,-2419.35,0.00025172,2]
[355069908,1740886290236,-4017.73,0.00025172,2]
[355069909,1740886290260,-500.0,0.00025172,2]
[355069910,1740886290284,-2550.68,0.00025172,2]
[355069911,1740886290301,-1400.73,0.00025172,2]
[355069912,1740886290322,-596.32,0.00025172,2]
[355069913,1740886290345,-718.57,0.00025172,2]
[355069914,1740886290378,-1849.98,0.00025172,2]
[355069915,1740886290394,-18199.11,0.00025172,2]
[355069916,1740886290416,-500.0,0.00025172,2]
[355069917,1740886290435,-500.0,0.00025172,2]
[355069918,1740886290460,-6307.07,0.00025172,2]
[355069919,1740886290475,-500.0,0.00025172,2]
[355069920,1740886290511,-3500.41,0.00025172,2]
[355069921,1740886290538,-500.0,0.00025172,2]
[355069922,1740886290565,-740.47,0.00025172,2]
[355069923,1740886290589,-500.0,0.00025172,2]
[355069924,1740886290613,-1093.67,0.00025172,2]
[355069925,1740886290636,-11719.04,0.00025172,2]
[355069926,1740886290658,-2757.89,0.00025172,2]
[355069927,1740886290677,-500.0,0.00025172,2]
[355069928,1740886290697,-500.0,0.00025172,2]
[355069929,1740886290718,-500.0,0.00025172,2]
[355069930,1740886290736,-1586.33,0.00025172,2]
[355069931,1740886290757,-23789.19,0.00025172,2]
[355069932,1740886290778,-1230.43,0.00025172,2]
[355069933,1740886290797,-500.0,0.00025172,2]
[355069934,1740886290815,-517.45481242,0.00025172,2]
[355069935,1740886290834,-500.0,0.00025172,2]
[355069936,1740886290853,-3144.58,0.00025172,2]
[355069937,1740886290871,-500.0,0.00025172,2]
[355069938,1740886290889,-733.81,0.00025172,2]
[355069939,1740886290908,-500.0,0.00025173,2]
[355069940,1740886290926,-526.15,0.00025173,2]
[355069941,1740886290944,-1168.03,0.00025173,2]
[355069942,1740886290961,-500.0,0.00025173,2]
[355069943,1740886290980,-500.0,0.00025173,2]
[355069944,1740886290998,-512.14316996,0.00025173,2]
[355069945,1740886291015,-500.0,0.00025173,2]
[355069946,1740886291033,-930.89,0.00025173,2]
[355069947,1740886291050,-500.0,0.00025173,2]
[355069948,1740886291067,-500.0,0.00025173,2]
[355069949,1740886291085,-602.99,0.00025173,2]
[355069950,1740886291102,-500.0,0.00025173,2]
[355069951,1740886291119,-514.23279165,0.00025173,2]
[355069952,1740886291138,-500.0,0.00025173,2]
[355069953,1740886291154,-500.03,0.00025173,2]
[355069954,1740886291173,-912.13,0.00025173,2]
[355069955,1740886291190,-200.0,0.00025173,2]
[355069956,1740886291208,-500.0,0.00025173,2]
[355069957,1740886291225,-500.0,0.00025173,2]
[355069958,1740886291246,-500.0,0.00025173,2]
[355069959,1740886291262,-860.85,0.00025173,2]
[355069960,1740886291280,-500.0,0.00025173,2]
[355069961,1740886291298,-500.0,0.00025173,2]
[355069962,1740886291317,-500.0,0.00025173,2]
[355069963,1740886291335,-500.0,0.00025173,2]
[355069964,1740886291352,-500.0,0.00025173,2]
[355069965,1740886291368,-500.0,0.00025173,2]
[355069966,1740886291385,-508.76151587,0.00025173,2]
[355069967,1740886291402,-500.0,0.00025173,2]
[355069968,1740886291420,-500.0,0.00025173,2]
[355069969,1740886291437,-511.48398405,0.00025173,2]
[355069970,1740886291454,-500.0,0.00025173,2]
[355069971,1740886291471,-1228.22,0.00025173,2]
[355069972,1740886291488,-756.89,0.00025173,2]
[355069973,1740886291506,-585.74,0.00025173,2]
[355069974,1740886291523,-500.0,0.00025173,2]
[355069975,1740886291543,-564.12,0.00025173,2]
[355069976,1740886291561,-500.0,0.00025173,2]
[355069977,1740886291578,-685.69,0.00025173,2]
[355069978,1740886291601,-500.0,0.00025173,2]
[355069979,1740886291619,-500.0,0.00025173,2]
[355069980,1740886291636,-500.0,0.00025173,2]
[355069981,1740886291654,-509.1,0.00025173,2]
[355069982,1740886291672,-500.0,0.00025173,2]
[355069983,1740886291702,-500.0,0.00025173,2]
[355069984,1740886291736,-766.25,0.00025173,2]
[355069985,1740886291766,-500.0,0.00025173,2]
[355069986,1740886291794,-1706.06,0.00025173,2]
[355069987,1740886291819,-500.0,0.00025173,2]
[355069988,1740886291852,-870.92,0.00025173,2]
[355069989,1740886291874,-531.24,0.00025173,2]
[355069990,1740886291893,-818.25,0.00025173,2]
[355069991,1740886291914,-855.68,0.00025173,2]
[355069992,1740886291934,-500.49,0.00025173,2]
[355069993,1740886291953,-543.59820356,0.00025173,2]
[355069994,1740886291972,-500.0,0.00025173,2]
[355069995,1740886291991,-500.0,0.00025173,2]
[355069996,1740886292009,-630.0,0.00025173,2]
[355069997,1740886292028,-500.0,0.00025173,2]
[355069998,1740886292047,-500.0,0.00025173,2]
[355069999,1740886292064,-500.0,0.00025173,2]
[355070000,1740886292084,-500.0,0.00025173,2]
[355070001,1740886292103,-500.0,0.00025173,2]
[355070002,1740886292122,-328.81921299,0.00025173,2]
[355070003,1740886292139,-500.0,0.00025173,2]
[355070004,1740886292463,-522.79693662,0.00025173,2]
[355070005,1740886292475,-500.0,0.00025173,2]
[355070006,1740886292485,-500.0,0.00025173,2]
[355070007,1740886292495,-1052.31,0.00025173,2]
[355070008,1740886292505,-509.10206878,0.00025173,2]
[355070009,1740886292515,-1446.78,0.00025173,2]
[355070010,1740886292526,-500.0,0.00025173,2]
[355070011,1740886292536,-500.0,0.00025173,2]
[355070012,1740886292546,-607.0,0.00025173,2]
[355070013,1740886292556,-444.59622038,0.00025173,2]
[355070014,1740886292566,-500.0,0.00025173,2]
[355070015,1740886292576,-500.0,0.00025173,2]
[355070016,1740886292586,-500.0,0.00025173,2]
[355070017,1740886292597,-500.0,0.00025173,2]
[355070018,1740886292607,-500.0,0.00025173,2]
[355070019,1740886292616,-500.0,0.00025173,2]
[355070020,1740886292626,-500.0,0.00025173,2]
[355070021,1740886292637,-500.0,0.00025173,2]
[355070022,1740886292647,-500.0,0.00025173,2]
[355070023,1740886292657,-1818.63,0.00025173,2]
[355070024,1740886292668,-513.47529039,0.00025173,2]
[355070025,1740886292678,-500.0,0.00025173,2]
[355070026,1740886292688,-500.0,0.00025173,2]
[355070027,1740886292697,-500.0,0.00025173,2]
[355070028,1740886292707,-500.0,0.00025173,2]
[355070029,1740886292717,-500.0,0.00025173,2]
[355070030,1740886292727,-500.0,0.00025173,2]
[355070031,1740886292737,-502.80636904,0.00025173,2]